fUST/lending_fUST_20240828
["ID","MTS","AMOUNT","RATE_DAILY","PERIOD"]
[336442076,1724829051481,-500.0,0.00013698,2]
[336442078,1724829051492,-500.0,0.00013698,2]
[336442080,1724829051502,-500.0,0.00013698,2]
[336442082,1724829051512,-349.67298582,0.00013698,2]
[336442084,1724829051522,-500.0,0.00013698,2]
[336442086,1724829051532,-500.0,0.00013698,2]
[336442088,1724829051543,-500.0,0.00013698,2]
[336442091,1724829051556,-761.42125867,0.00013698,2]
[336442093,1724829051566,-761.42125867,0.00013698,2]
[336442095,1724829051577,-761.42125867,0.00013698,2]
[336442097,1724829051587,-761.42125867,0.00013698,2]
[336442099,1724829051596,-761.42125867,0.00013698,2]
[336442101,1724829051607,-761.42125867,0.00013698,2]
[336442103,1724829051618,-761.42125867,0.00013698,2]
[336442106,1724829051630,-761.42125867,0.00013698,2]
[336442108,1724829051641,-761.42125867,0.00013698,2]
[336442110,1724829051651,-761.42125867,0.00013698,2]
[336442112,1724829051661,-761.42125867,0.00013698,2]
[336442114,1724829051672,-761.42125867,0.00013698,2]
[336442116,1724829051681,-761.42125867,0.00013698,2]
[336442118,1724829051696,-761.42125867,0.00013698,2]
[336442120,1724829051705,-761.42125867,0.00013698,2]
[336442122,1724829051715,-761.42125867,0.00013698,2]
[336442124,1724829051725,-761.42125867,0.00013698,2]
[336442126,1724829051735,-799.49232161,0.00013698,2]
[336442128,1724829051745,-799.49232161,0.00013698,2]
[336442130,1724829051755,-799.49232161,0.00013698,2]
[336442132,1724829051765,-799.49232161,0.00013698,2]
[336442134,1724829051775,-799.49232161,0.00013698,2]
[336442136,1724829051785,-799.49232161,0.00013698,2]
[336442139,1724829051795,-500.0,0.00013698,2]
[336442141,1724829051806,-500.0,0.00013698,2]
[336442143,1724829051816,-500.0,0.00013698,2]
[336442145,1724829051826,-358.33,0.00013698,2]
[336442147,1724829051837,-234.23,0.00013698,2]
[336442149,1724829051847,-500.0,0.00013698,2]
[336442151,1724829051857,-500.0,0.00013698,2]
[336442153,1724829051866,-2037.88,0.00013698,2]
[336442155,1724829051876,-500.0,0.00013698,2]
[336442157,1724829051887,-214.2,0.00013698,2]
[336442159,1724829051897,-761.38,0.00013698,2]
[336442161,1724829051910,-500.0,0.00013698,2]
[336442164,1724829051922,-500.0,0.00013698,2]
[336442166,1724829051933,-1349.97,0.00013698,2]
[336442168,1724829051943,-809.55,0.00013698,2]
[336442170,1724829051953,-500.0,0.00013698,2]
[336442172,1724829051964,-516.58,0.00013698,2]
[336442174,1724829051974,-953.37,0.00013698,2]
[336442176,1724829051984,-447.90477535,0.00013698,2]
[336442178,1724829051993,-500.0,0.00013698,2]
[336442180,1724829052003,-779.88,0.00013698,2]
[336442183,1724829052013,-500.0,0.00013698,2]
[336442185,1724829052022,-1961.59,0.00013698,2]
[336442187,1724829052033,-500.0,0.00013698,2]
[336442189,1724829052045,-500.0,0.00013698,2]
[336442191,1724829052054,-500.0,0.00013698,2]
[336442193,1724829052064,-4106.86,0.00013698,2]
[336442195,1724829052077,-838.77264047,0.00013698,2]
[336442205,1724829052163,-500.0,0.00010958,2]
[336442207,1724829052173,-500.0,0.00010958,2]
[336442209,1724829052183,-500.0,0.00011232,2]
[336442212,1724829052194,-576.31735953,0.00013698,2]
[336442214,1724829052206,-973.96,0.00013698,2]
[336442216,1724829052217,-500.0,0.00013698,2]
[336442218,1724829052229,-612.1324918,0.00013698,2]
[336442221,1724829052239,-500.0,0.00013698,2]
[336442223,1724829052249,-500.0,0.00013698,2]
[336442224,1724829052260,-500.0,0.00013698,2]
[336442225,1724829052270,-500.0,0.00013698,2]
[336442226,1724829052280,-500.0,0.00013698,2]
[336442227,1724829052291,-500.0,0.00013698,2]
[336442228,1724829052300,-3000.0,0.00013699,2]
[336442229,1724829052310,-286.720188,0.00013699,2]
[336442230,1724829052320,-500.0,0.00013699,2]
[336442231,1724829052330,-500.0,0.00013699,2]
[336442232,1724829052340,-500.0,0.00013699,2]
[336442233,1724829052350,-363.76989466,0.00013699,2]
[336442234,1724829052360,-500.0,0.00013699,2]
[336442235,1724829052370,-5329.35198015,0.00013872,2]
[336442236,1724829052380,-150.112233,0.000139,2]
[336442237,1724829052389,-370.81,0.00013972,2]
[336442238,1724829052399,-500.0,0.00013972,2]
[336442240,1724829052409,-500.0,0.00013972,2]
[336442242,1724829052420,-311.23740919,0.00013972,2]
[336442244,1724829052431,-500.0,0.00013972,2]
[336442246,1724829052440,-2037.88,0.00013972,2]
[336442248,1724829052451,-500.0,0.00013972,2]
[336442250,1724829052462,-761.38,0.00013972,2]
[336442252,1724829052472,-500.0,0.00013972,2]
[336442254,1724829052483,-500.0,0.00013972,2]
[336442257,1724829052494,-1349.97,0.00013972,2]
[336442259,1724829052504,-809.55,0.00013972,2]
[336442261,1724829052514,-500.0,0.00013972,2]
[336442263,1724829052525,-953.37,0.00013972,2]
[336442265,1724829052535,-500.0,0.00013972,2]
[336442267,1724829052546,-779.88,0.00013972,2]
[336442269,1724829052557,-500.0,0.00013972,2]
[336442271,1724829052568,-1961.59,0.00013972,2]
[336442273,1724829052577,-500.0,0.00013972,2]
[336442275,1724829052587,-500.0,0.00013972,2]
[336442277,1724829052597,-500.0,0.00013972,2]
[336442279,1724829052606,-4106.86,0.00013972,2]
[336442282,1724829052618,-1415.09,0.00013972,2]
[336442284,1724829052629,-973.96,0.00013972,2]
[336442286,1724829052640,-394.77,0.00013972,2]
[336442288,1724829052650,-500.0,0.00013972,2]
[336442290,1724829052662,-524.22,0.00013972,2]
[336442292,1724829052673,-563.57,0.00013972,2]
[336442295,1724829052687,-500.0,0.00013972,2]
[336442297,1724829052699,-500.0,0.00013972,2]
[336442299,1724829052710,-634.31519294,0.00013972,2]
[336442301,1724829052721,-324.0,0.00014025,2]
[336442303,1724829052732,-324.0,0.0001404,2]
[336442305,1724829052742,-236.11350432,0.00014059,2]
[336442307,1724829052752,-175.39,0.00014246,2]
[336442309,1724829052762,-500.0,0.00014246,2]
[336442311,1724829052772,-500.0,0.00014246,2]
[336442313,1724829052782,-2037.88,0.00014246,2]
[336442315,1724829052792,-500.0,0.00014246,2]
[336442317,1724829052803,-761.38,0.00014246,2]
[336442319,1724829052812,-500.0,0.00014246,2]
[336442321,1724829052822,-174.75,0.00014246,2]
[336442323,1724829052832,-1349.97,0.00014246,2]
[336442325,1724829052841,-809.55,0.00014246,2]
[336442327,1724829052851,-500.0,0.00014246,2]
[336442329,1724829052862,-953.37,0.00014246,2]
[336442331,1724829052872,-500.0,0.00014246,2]
[336442333,1724829052883,-779.88,0.00014246,2]
[336442335,1724829052893,-500.0,0.00014246,2]
[336442338,1724829052904,-1961.59,0.00014246,2]
[336442340,1724829052916,-500.0,0.00014246,2]
[336442342,1724829052926,-500.0,0.00014246,2]
[336442344,1724829052936,-500.0,0.00014246,2]
[336442346,1724829052945,-4106.86,0.00014246,2]
[336442348,1724829052955,-1415.09,0.00014246,2]
[336442350,1724829052966,-973.96,0.00014246,2]
[336442352,1724829052976,-500.0,0.00014246,2]
[336442354,1724829052986,-500.0,0.00014246,2]
[336442356,1724829052995,-500.0,0.00014246,2]
[336442358,1724829053005,-607.5,0.00014247,2]
[336442360,1724829053015,-158.333333,0.00014247,2]
[336442362,1724829053025,-500.0,0.0001452,2]
[336442364,1724829053036,-500.0,0.0001452,2]
[336442366,1724829053045,-2037.88,0.0001452,2]
[336442368,1724829053055,-500.0,0.0001452,2]
[336442370,1724829053064,-761.38,0.0001452,2]
[336442372,1724829053076,-500.0,0.0001452,2]
[336442374,1724829053085,-1349.97,0.0001452,2]
[336442376,1724829053094,-809.55,0.0001452,2]
[336442378,1724829053104,-500.0,0.0001452,2]
[336442380,1724829053113,-953.37,0.0001452,2]
[336442382,1724829053123,-307.99,0.0001452,2]
[336442384,1724829053132,-779.88,0.0001452,2]
[336442386,1724829053141,-500.0,0.0001452,2]
[336442388,1724829053151,-1961.59,0.0001452,2]
[336442391,1724829053161,-500.0,0.0001452,2]
[336442393,1724829053171,-627.47,0.0001452,2]
[336442395,1724829053182,-500.0,0.0001452,2]
[336442397,1724829053191,-4106.86,0.0001452,2]
[336442399,1724829053200,-221.16423242,0.0001452,2]
[336442410,1724829053288,-500.0,0.00011232,2]
[336442412,1724829053298,-154.59033561,0.00013688,2]
[336442414,1724829053309,-1193.92576758,0.0001452,2]
[336442416,1724829053318,-973.96,0.0001452,2]
[336442418,1724829053329,-500.0,0.0001452,2]
[336442420,1724829053340,-500.0,0.0001452,2]
[336442422,1724829053350,-500.0,0.0001452,2]
[336442424,1724829053360,-500.0,0.00014794,2]
[336442426,1724829053370,-500.0,0.00014794,2]
[336442428,1724829053380,-2037.88,0.00014794,2]
[336442430,1724829053391,-500.0,0.00014794,2]
[336442432,1724829053401,-761.38,0.00014794,2]
[336442434,1724829053411,-531.78,0.00014794,2]
[336442436,1724829053421,-1349.97,0.00014794,2]
[336442438,1724829053430,-809.55,0.00014794,2]
[336442440,1724829053439,-500.0,0.00014794,2]
[336442442,1724829053449,-953.37,0.00014794,2]
[336442444,1724829053458,-779.88,0.00014794,2]
[336442446,1724829053469,-500.0,0.00014794,2]
[336442449,1724829053480,-1961.59,0.00014794,2]
[336442451,1724829053490,-500.0,0.00014794,2]
[336442453,1724829053500,-500.0,0.00014794,2]
[336442455,1724829053510,-4106.86,0.00014794,2]
[336442457,1724829053521,-1415.09,0.00014794,2]
[336442459,1724829053531,-973.96,0.00014794,2]
[336442461,1724829053542,-500.0,0.00014794,2]
[336442463,1724829053552,-614.84,0.00014794,2]
[336442465,1724829053562,-456.47,0.00014794,2]
[336442467,1724829053571,-150.112233,0.000148,2]
[336442469,1724829053581,-20806.3048966,0.00015,2]
[336442472,1724829053593,-366.52,0.00015068,2]
[336442474,1724829053603,-182.65,0.00015068,2]
[336442476,1724829053612,-2037.88,0.00015068,2]
[336442478,1724829053621,-186.19,0.00015068,2]
[336442480,1724829053631,-761.38,0.00015068,2]
[336442482,1724829053641,-1349.97,0.00015068,2]
[336442484,1724829053651,-809.55,0.00015068,2]
[336442486,1724829053662,-500.0,0.00015068,2]
[336442488,1724829053672,-953.37,0.00015068,2]
[336442490,1724829053683,-779.88,0.00015068,2]
[336442492,1724829053695,-1961.59,0.00015068,2]
[336442494,1724829053705,-500.0,0.00015068,2]
[336442496,1724829053715,-500.0,0.00015068,2]
[336442498,1724829053724,-4106.86,0.00015068,2]
[336442500,1724829053734,-1415.09,0.00015068,2]
[336442502,1724829053744,-973.96,0.00015068,2]
[336442504,1724829053754,-500.0,0.00015068,2]
[336442506,1724829053765,-2037.88,0.00015342,2]
[336442508,1724829053775,-761.38,0.00015342,2]
[336442511,1724829053786,-1349.97,0.00015342,2]
[336442513,1724829053795,-809.55,0.00015342,2]
[336442514,1724829053805,-500.0,0.00015342,2]
[336442517,1724829053815,-953.37,0.00015342,2]
[336442519,1724829053824,-779.88,0.00015342,2]
[336442521,1724829053834,-1961.59,0.00015342,2]
[336442523,1724829053844,-633.65,0.00015342,2]
[336442525,1724829053855,-500.0,0.00015342,2]
[336442527,1724829053864,-4106.86,0.00015342,2]
[336442529,1724829053873,-1415.09,0.00015342,2]
[336442531,1724829053883,-973.96,0.00015342,2]
[336442533,1724829053895,-500.0,0.00015342,2]
[336442535,1724829053905,-150.112233,0.000156,2]
[336442537,1724829053915,-1012.24206773,0.00015615,2]
[336442539,1724829053925,-2037.88,0.00015616,2]
[336442554,1724829053935,-761.38,0.00015616,2]
[336442556,1724829054057,-1349.97,0.00015616,2]
[336442558,1724829054067,-809.55,0.00015616,2]
[336442560,1724829054077,-500.0,0.00015616,2]
[336442562,1724829054087,-953.37,0.00015616,2]
[336442564,1724829054096,-779.88,0.00015616,2]
[336442566,1724829054107,-1961.59,0.00015616,2]
[336442568,1724829054117,-500.0,0.00015616,2]
[336442571,1724829054128,-4106.86,0.00015616,2]
[336442573,1724829054139,-1415.09,0.00015616,2]
[336442575,1724829054151,-973.96,0.00015616,2]
[336442577,1724829054161,-500.0,0.00015616,2]
[336442579,1724829054172,-2037.88,0.0001589,2]
[336442581,1724829054183,-761.38,0.0001589,2]
[336442583,1724829054192,-1349.97,0.0001589,2]
[336442585,1724829054202,-809.55,0.0001589,2]
[336442587,1724829054211,-500.0,0.0001589,2]
[336442589,1724829054220,-953.37,0.0001589,2]
[336442591,1724829054230,-779.88,0.0001589,2]
[336442593,1724829054240,-1961.59,0.0001589,2]
[336442596,1724829054249,-500.0,0.0001589,2]
[336442598,1724829054259,-4106.86,0.0001589,2]
[336442600,1724829054268,-1415.09,0.0001589,2]
[336442602,1724829054278,-973.96,0.0001589,2]
[336442604,1724829054288,-500.0,0.0001589,2]
[336442606,1724829054298,-2037.88,0.00016164,2]
[336442608,1724829054307,-761.38,0.00016164,2]
[336442610,1724829054317,-1349.97,0.00016164,2]
[336442612,1724829054327,-809.55,0.00016164,2]
[336442614,1724829054337,-500.0,0.00016164,2]
[336442616,1724829054347,-953.37,0.00016164,2]
[336442618,1724829054356,-779.88,0.00016164,2]
[336442620,1724829054366,-1961.59,0.00016164,2]
[336442622,1724829054375,-500.0,0.00016164,2]
[336442624,1724829054386,-4106.86,0.00016164,2]
[336442626,1724829054396,-1415.09,0.00016164,2]
[336442628,1724829054406,-973.96,0.00016164,2]
[336442630,1724829054418,-500.0,0.00016164,2]
[336442632,1724829054427,-2037.88,0.00016438,2]
[336442635,1724829054438,-761.38,0.00016438,2]
[336442637,1724829054447,-1349.97,0.00016438,2]
[336442639,1724829054457,-809.55,0.00016438,2]
[336442641,1724829054466,-500.0,0.00016438,2]
[336442642,1724829054475,-953.37,0.00016438,2]
[336442644,1724829054484,-779.88,0.00016438,2]
[336442647,1724829054495,-1961.59,0.00016438,2]
[336442649,1724829054504,-500.0,0.00016438,2]
[336442651,1724829054514,-4106.86,0.00016438,2]
[336442653,1724829054523,-1415.09,0.00016438,2]
[336442655,1724829054533,-973.96,0.00016438,2]
[336442657,1724829054543,-500.0,0.00016438,2]
[336442659,1724829054553,-150.112233,0.000165,2]
[336442661,1724829054562,-2037.88,0.00016712,2]
[336442663,1724829054571,-761.38,0.00016712,2]
[336442665,1724829054580,-1349.97,0.00016712,2]
[336442667,1724829054589,-809.55,0.00016712,2]
[336442669,1724829054598,-500.0,0.00016712,2]
[336442671,1724829054608,-953.37,0.00016712,2]
[336442673,1724829054617,-779.88,0.00016712,2]
[336442675,1724829054627,-1961.59,0.00016712,2]
[336442677,1724829054636,-500.0,0.00016712,2]
[336442679,1724829054647,-4106.86,0.00016712,2]
[336442681,1724829054657,-1415.09,0.00016712,2]
[336442683,1724829054668,-973.96,0.00016712,2]
[336442685,1724829054677,-500.0,0.00016712,2]
[336442687,1724829054689,-2037.88,0.00016986,2]
[336442689,1724829054699,-761.38,0.00016986,2]
[336442691,1724829054709,-1349.97,0.00016986,2]
[336442693,1724829054718,-809.55,0.00016986,2]
[336442695,1724829054727,-509.32,0.00016986,2]
[336442697,1724829054738,-953.37,0.00016986,2]
[336442699,1724829054747,-779.88,0.00016986,2]
[336442701,1724829054758,-1961.59,0.00016986,2]
[336442703,1724829054768,-369.47,0.00016986,2]
[336442705,1724829054777,-4106.86,0.00016986,2]
[336442707,1724829054787,-1415.09,0.00016986,2]
[336442709,1724829054797,-973.96,0.00016986,2]
[336442711,1724829054806,-500.0,0.00016986,2]
[336442713,1724829054816,-795.60408225,0.0001726,2]
[336443882,1724829292731,452.22132183,7.19e-05,2]
[336443883,1724829292765,412.11301841,7.19e-05,2]
[336443885,1724829302868,10000.0,0.00011506,10]
[336443886,1724829310496,600.0,7.189e-05,2]
[336443888,1724829334176,498.45248065,7.177e-05,2]
[336443889,1724829334208,465.25747079,7.177e-05,2]
[336443890,1724829334242,899.80465754,7.177e-05,2]
[336443891,1724829350580,852.30053469,7.137e-05,2]
[336443898,1724829586921,500.0,0.00025,120]
[336443917,1724829930508,-544.70935172,7.137e-05,2]
[336443918,1724829935100,-1458.66996481,7.137e-05,2]
[336443937,1724830033115,-6927.04615304,7.137e-05,2]
[336443940,1724830048152,-217.27399574,7.137e-05,2]
[336443941,1724830048175,-112.13298484,7.176e-05,2]
[336443953,1724830152145,-8136.48539102,7.177e-05,2]
[336443954,1724830152167,-160.2444623,7.179e-05,2]
[336443955,1724830152188,-2.90229868,7.188e-05,2]
[336443956,1724830156147,-247.09770132,7.188e-05,2]
[336443957,1724830156171,-242.0,7.188e-05,2]
[336443958,1724830156192,-9400.0,7.189e-05,2]
[336443959,1724830156216,-9135.66565976,7.19e-05,2]
[336443960,1724830156240,-500.0,7.555e-05,2]
[336443961,1724830156263,-184.75069855,7.555e-05,2]
[336443962,1724830156295,-6276.9549474,7.815e-05,2]
[336443963,1724830156318,-666.01763079,7.911e-05,2]
[336443964,1724830156339,-156.25717581,7.911e-05,2]
[336443965,1724830156360,-155.35319425,7.911e-05,2]
[336443966,1724830156380,-603.39236087,7.911e-05,2]
[336443967,1724830156402,-729.31646428,7.911e-05,2]
[336443968,1724830156425,-154.98088165,7.911e-05,2]
[336443969,1724830156446,-366.68045916,7.911e-05,2]
[336443970,1724830156467,-349.81864305,7.911e-05,2]
[336443971,1724830156487,-160.06595837,7.911e-05,2]
[336443972,1724830156509,-154.62117811,7.911e-05,2]
[336443973,1724830156529,-192.82292488,7.911e-05,2]
[336443974,1724830156550,-314.55820285,7.911e-05,2]
[336443975,1724830156571,-194.2975355,7.949e-05,2]
[336443976,1724830156595,-1119.0334727,7.954e-05,2]
[336443977,1724830156618,-1000.0,8.103e-05,2]
[336443978,1724830156822,-2237.76601744,8.521e-05,2]
[336443979,1724830156846,-2282.92421799,8.521e-05,3]
[336443980,1724830156869,-307.07976511,8.521e-05,2]
[336443981,1724830156891,-536.03119965,8.521e-05,2]
[336443982,1724830156914,-272.31321847,8.521e-05,2]
[336443983,1724830156937,-394.68116315,8.521e-05,2]
[336443984,1724830156959,-271.82761531,8.532e-05,2]
[336443985,1724830156981,-375.07960744,8.532e-05,2]
[336443986,1724830157004,-1864.09428318,8.714e-05,2]
[336443987,1724830157026,-500.0,9.001e-05,2]
[336443988,1724830157050,-7867.23364718,9.524e-05,2]
[336443989,1724830159139,-435.0771508,7.19e-05,2]
[336443990,1724830159162,-100.02016696,9.524e-05,2]
[336443993,1724830171130,-309.22701036,8.698e-05,2]
[336443994,1724830171151,-17.77604934,9.524e-05,2]
[336443995,1724830171172,-2144.73852712,9.939e-05,2]
[336443996,1724830171193,-2166.90065835,9.939e-05,2]
[336443997,1724830171215,-817.98661284,0.0001,2]
[336443998,1724830171237,-155.04683307,0.0001,2]
[336443999,1724830171258,-413.9747362,0.0001,2]
[336444000,1724830171289,-275.10255037,0.0001,2]
[336444001,1724830171317,-34539.53864766,0.0001,2]
[336444002,1724830171343,-2999.17623735,0.00010081,2]
[336444003,1724830171364,-161.06505143,0.00010081,2]
[336444004,1724830171386,-154.98168515,0.00010081,2]
[336444005,1724830171408,-246.09789955,0.00010081,2]
[336444006,1724830171430,-570.08379393,0.00010081,2]
[336444007,1724830171455,-319.37746061,0.0001016,2]
[336444008,1724830171477,-160.59004346,0.0001026,2]
[336444009,1724830171500,-27.33455059,0.0001026,2]
[336444010,1724830174154,-668.09138573,0.0001026,2]
[336444011,1724830175184,202.97660321,8.698e-05,2]
[336444012,1724830176474,160.59004346,0.00010081,2]
[336444013,1724830206598,687.84546849,0.0001,2]
[336444140,1724830238699,-500.0,0.00010958,2]
[336444142,1724830238709,-500.0,0.00010958,2]
[336444144,1724830238719,-500.0,0.00010958,2]
[336444146,1724830238728,-500.0,0.00010958,2]
[336444148,1724830238739,-500.0,0.00010958,2]
[336444150,1724830238748,-500.0,0.00010958,2]
[336444152,1724830238760,-549.5,0.00010958,2]
[336444154,1724830238770,-497.52125363,0.00010958,2]
[336444156,1724830238780,-500.0,0.00010958,2]
[336444158,1724830238790,-500.0,0.00010958,2]
[336444160,1724830238800,-500.0,0.00010958,2]
[336444162,1724830238811,-500.0,0.00010958,2]
[336444164,1724830238825,-500.0,0.00010958,2]
[336444166,1724830238836,-500.0,0.00010958,2]
[336444168,1724830238845,-500.0,0.00010958,2]
[336444170,1724830238855,-500.0,0.00010958,2]
[336444172,1724830238865,-524.89,0.00010958,2]
[336444174,1724830238875,-500.0,0.00010958,2]
[336444176,1724830238885,-500.0,0.00010958,2]
[336444179,1724830238895,-500.0,0.00010958,2]
[336444181,1724830238904,-500.0,0.00010958,2]
[336444183,1724830238914,-500.0,0.00010958,2]
[336444185,1724830238924,-569.41,0.00010958,2]
[336444187,1724830238934,-500.0,0.00010958,2]
[336444189,1724830238944,-369.98,0.00010958,2]
[336444191,1724830238955,-500.0,0.00010958,2]
[336444193,1724830238964,-500.0,0.00010958,2]
[336444195,1724830238975,-500.0,0.00010958,2]
[336444197,1724830238985,-500.0,0.00010958,2]
[336444199,1724830238995,-500.0,0.00010958,2]
[336444201,1724830239006,-500.0,0.00010958,2]
[336444203,1724830239016,-500.0,0.00010958,2]
[336444206,1724830239027,-500.0,0.00010958,2]
[336444208,1724830239037,-500.0,0.00010958,2]
[336444210,1724830239048,-500.0,0.00010958,2]
[336444212,1724830239063,-500.0,0.00010958,2]
[336444214,1724830239072,-500.0,0.00010958,2]
[336444216,1724830239082,-519.9009568,0.00010958,2]
[336444218,1724830239092,-500.0,0.00010958,2]
[336444220,1724830239102,-500.0,0.00010958,2]
[336444222,1724830239112,-500.0,0.00010958,2]
[336444224,1724830239122,-500.0,0.00010958,2]
[336444226,1724830239134,-500.0,0.00010958,2]
[336444229,1724830239144,-500.0,0.00010958,2]
[336444231,1724830239154,-500.0,0.00010958,2]
[336444233,1724830239163,-500.0,0.00010958,2]
[336444235,1724830239181,-500.0,0.00010958,2]
[336444238,1724830239193,-500.0,0.00010958,2]
[336444240,1724830239203,-500.0,0.00010958,2]
[336444242,1724830239213,-500.0,0.00010958,2]
[336444244,1724830239223,-500.0,0.00010958,2]
[336444246,1724830239232,-500.0,0.00010958,2]
[336444248,1724830239241,-500.0,0.00010958,2]
[336444250,1724830239251,-500.0,0.00010958,2]
[336444252,1724830239261,-500.0,0.00010958,2]
[336444254,1724830239271,-500.0,0.00010958,2]
[336444256,1724830239283,-536.41717787,0.00010958,2]
[336444258,1724830239292,-500.0,0.00010958,2]
[336444260,1724830239302,-500.0,0.00010958,2]
[336444262,1724830239311,-500.0,0.00010958,2]
[336444264,1724830239322,-500.0,0.00010958,2]
[336444266,1724830239332,-500.0,0.00010958,2]
[336444268,1724830239342,-500.0,0.00010958,2]
[336444271,1724830239352,-392.2406259,0.00010958,2]
[336444273,1724830239362,-500.0,0.00010958,2]
[336444275,1724830239372,-500.0,0.00010958,2]
[336444277,1724830239382,-465.18,0.00010958,2]
[336444279,1724830239392,-500.0,0.00010958,2]
[336444281,1724830239401,-552.15,0.00010958,2]
[336444283,1724830239411,-500.0,0.00010958,2]
[336444285,1724830239421,-500.0,0.00010958,2]
[336444287,1724830239431,-500.0,0.00010958,2]
[336444289,1724830239441,-500.0,0.00010958,2]
[336444291,1724830239451,-500.0,0.00010958,2]
[336444293,1724830239460,-500.0,0.00010958,2]
[336444295,1724830239470,-500.0,0.00010958,2]
[336444298,1724830239480,-500.0,0.00010958,2]
[336444300,1724830239489,-500.0,0.00010958,2]
[336444302,1724830239499,-500.0,0.00010958,2]
[336444304,1724830239509,-500.0,0.00010958,2]
[336444306,1724830239518,-500.0,0.00010958,2]
[336444308,1724830239527,-500.0,0.00010958,2]
[336444310,1724830239538,-500.0,0.00010958,2]
[336444312,1724830239548,-500.0,0.00010958,2]
[336444314,1724830239558,-500.0,0.00010958,2]
[336444316,1724830239567,-500.0,0.00010958,2]
[336444318,1724830239578,-500.0,0.00010958,2]
[336444320,1724830239588,-500.0,0.00010958,2]
[336444322,1724830239597,-500.0,0.00010958,2]
[336444325,1724830239607,-500.0,0.00010958,2]
[336444327,1724830239617,-500.0,0.00010958,2]
[336444329,1724830239627,-500.0,0.00010958,2]
[336444331,1724830239637,-500.0,0.00010958,2]
[336444333,1724830239646,-500.0,0.00010958,2]
[336444335,1724830239656,-567.65,0.00010958,2]
[336444337,1724830239666,-500.0,0.00010958,2]
[336444339,1724830239676,-500.0,0.00010958,2]
[336444341,1724830239686,-500.0,0.00010958,2]
[336444343,1724830239696,-500.0,0.00010958,2]
[336444345,1724830239706,-500.0,0.00010958,2]
[336444347,1724830239716,-500.0,0.00010958,2]
[336444349,1724830239725,-500.0,0.00010958,2]
[336444351,1724830239735,-500.0,0.00010958,2]
[336444353,1724830239745,-500.0,0.00010958,2]
[336444355,1724830239755,-500.0,0.00010958,2]
[336444357,1724830239764,-500.0,0.00010958,2]
[336444359,1724830239775,-271.26,0.00010958,2]
[336444362,1724830239785,-500.0,0.00010958,2]
[336444364,1724830239799,-500.0,0.00010958,2]
[336444366,1724830239809,-222.59866188,0.00010958,2]
[336444368,1724830239819,-500.0,0.00010958,2]
[336444370,1724830239829,-500.0,0.00010958,2]
[336444372,1724830239839,-500.0,0.00010958,2]
[336444374,1724830239849,-507.2,0.00010958,2]
[336444376,1724830239861,-500.0,0.00010958,2]
[336444379,1724830239872,-500.0,0.00010958,2]
[336444381,1724830239882,-500.0,0.00010958,2]
[336444383,1724830239892,-500.0,0.00010958,2]
[336444385,1724830239903,-500.0,0.00010958,2]
[336444387,1724830239913,-500.0,0.00010958,2]
[336444389,1724830239923,-500.0,0.00010958,2]
[336444391,1724830239933,-500.0,0.00010958,2]
[336444393,1724830239943,-500.0,0.00010958,2]
[336444395,1724830239954,-500.0,0.00010958,2]